bitfinex-derivatives/quotes_BNBF0:USTF0_20251010
["timestamp","ask_amount","ask_price","bid_price","bid_amount"]
[1760122886184,0.14205502,1224.8,1223.4,0.55312581]
[1760122886382,0.14205502,1224.8,1223.5,0.55312581]
[1760122886585,0.14205502,1224.8,1223.6,0.55312581]
[1760122886781,0.14205502,1224.8,1223.7,0.55312581]
[1760122886984,0.14205502,1224.8,1223.8,0.55312581]
[1760122887180,0.14205502,1224.8,1223.1,0.60600974]
[1760122887385,0.14205502,1224.8,1223.2,0.55292325]
[1760122887584,0.14205502,1224.8,1223.3,0.55292325]
[1760122887784,0.14205502,1224.8,1223.4,0.55292325]
[1760122887984,0.14205502,1224.8,1223.5,0.55292325]
[1760122888179,0.14205502,1224.8,1223.6,0.55292325]
[1760122888386,0.14205502,1224.8,1223.1,0.60600974]
[1760122888588,0.14205502,1224.8,1223.2,0.55445659]
[1760122888788,0.14205502,1224.8,1223.3,0.55445659]
[1760122888991,0.14205502,1224.8,1223.4,0.55445659]
[1760122889291,0.14205502,1224.8,1223.5,0.55445659]
[1760122889490,0.14205502,1224.8,1223.6,0.55445659]
[1760122889791,0.14205502,1224.8,1223.1,0.60600974]
[1760122889990,0.14205502,1224.8,1223.2,0.55445404]
[1760122890193,0.14205502,1224.8,1223.3,0.55445404]
[1760122890393,0.14205502,1224.8,1223.4,0.55445404]
[1760122890594,0.14205502,1224.8,1223.5,0.55445404]
[1760122890793,0.14205502,1224.8,1223.6,0.55445404]
[1760122890989,0.14205502,1224.8,1223.0,0.60600974]
[1760122891192,0.14205502,1224.8,1223.1,0.55453431]
[1760122891393,0.14205502,1224.8,1223.2,0.55453431]
[1760122891589,0.14205502,1224.8,1223.3,0.55453431]
[1760122891794,0.14205502,1224.8,1223.4,0.55453431]
[1760122891990,0.14205502,1224.8,1223.5,0.55453431]
[1760122892289,0.14205502,1224.8,1223.6,0.55453431]
[1760122892590,0.14205502,1224.8,1222.9,0.60600974]
[1760122892805,0.14205502,1224.8,1223.0,0.54990704]
[1760122892994,0.14205502,1224.8,1223.1,0.54990704]
[1760122893191,0.14205502,1224.8,1223.2,0.54990704]
[1760122893388,0.14205502,1224.8,1222.9,0.60600974]
[1760122893389,0.14205502,1224.8,1223.3,0.54990704]
[1760122893591,0.14205502,1224.8,1223.4,0.54990704]
[1760122893792,0.14205502,1224.8,1223.5,0.54990704]
[1760122893994,0.14205502,1224.8,1222.9,0.60600974]
[1760122894290,0.14205502,1224.8,1223.0,0.54997918]
[1760122894494,0.14205502,1224.8,1223.1,0.54997918]
[1760122894693,0.14205502,1224.8,1223.2,0.54997918]
[1760122894892,0.14205502,1224.8,1223.3,0.54997918]
[1760122895096,0.14205502,1224.8,1223.4,0.54994906]
[1760122895395,0.14205502,1224.8,1222.9,0.60600974]
[1760122895600,0.14205502,1224.8,1223.0,0.54988957]
[1760122895894,0.14205502,1224.8,1223.1,0.54988957]
[1760122896096,0.14205502,1224.8,1223.2,0.54988957]
[1760122896297,0.14205502,1224.8,1223.3,0.54988957]
[1760122896598,0.14205502,1224.8,1223.4,0.54988957]
[1760122896796,0.14205502,1224.8,1223.5,0.54988957]
[1760122897000,0.14205502,1224.8,1223.6,0.54983099]
[1760122897196,0.14205502,1224.8,1223.7,0.54983099]
[1760122897400,0.14205502,1224.8,1223.8,0.54983099]
[1760122897698,0.14205502,1224.8,1223.4,0.60600974]
[1760122897898,0.14205502,1224.8,1223.5,0.54979077]
[1760122898095,0.14205502,1224.8,1223.6,0.54979077]
[1760122898296,0.14205502,1224.8,1223.7,0.54979077]
[1760122898498,0.14205502,1224.8,1223.8,0.54979077]
[1760122898694,0.14205502,1224.8,1223.3,0.60600974]
[1760122898895,0.14205502,1224.8,1223.4,0.54979414]
[1760122899100,0.14205502,1224.8,1223.5,0.54979414]
[1760122899299,0.14205502,1224.8,1223.1,0.60600974]
[1760122899595,0.14205502,1224.8,1223.2,0.54987636]
[1760122899796,0.14205502,1224.8,1223.3,0.54987636]
[1760122899997,0.14205502,1224.8,1223.4,0.54987636]
[1760122900297,0.14205502,1224.8,1223.5,0.54987636]
[1760122900598,0.14205502,1224.8,1223.6,0.54985919]
[1760122900900,0.14205502,1224.8,1222.9,0.60600974]
[1760122901101,0.14205502,1224.8,1223.0,0.54985737]
[1760122901297,0.14205502,1224.8,1223.1,0.54985737]
[1760122901602,0.14205502,1224.8,1223.2,0.54985737]
[1760122901901,0.14205502,1224.8,1223.3,0.54985737]
[1760122902098,0.14205502,1224.8,1223.4,0.54985737]
[1760122902299,0.14205502,1224.8,1223.5,0.54985737]
[1760122902500,0.14205502,1224.8,1223.6,0.54985737]
[1760122902699,0.14205502,1224.8,1222.9,0.60600974]
[1760122902897,0.14205502,1224.8,1223.0,0.54985906]
[1760122903100,0.14205502,1224.8,1223.1,0.54985906]
[1760122903299,0.14205502,1224.8,1223.2,0.54985906]
[1760122903501,0.14205502,1224.8,1223.3,0.54985906]
[1760122903700,0.14205502,1224.8,1223.4,0.54985906]
[1760122903897,0.14205502,1224.8,1223.5,0.54985906]
[1760122904097,0.14205502,1224.8,1223.6,0.54985906]
[1760122904301,0.14205502,1224.8,1223.7,0.54985906]
[1760122904499,0.14205502,1224.8,1222.9,0.60600974]
[1760122904701,0.14205502,1224.8,1223.0,0.55011982]
[1760122904905,0.14205502,1224.8,1223.1,0.55011982]
[1760122905106,0.14205502,1224.8,1223.2,0.55011982]
[1760122905401,0.14205502,1224.8,1223.3,0.55011982]
[1760122905601,0.14205502,1224.8,1222.9,0.60600974]
[1760122905602,0.14205502,1224.8,1223.4,0.55011982]
[1760122905801,0.14205502,1224.8,1223.5,0.55011982]
[1760122906003,0.14205502,1224.8,1223.0,0.60600974]
[1760122906204,0.14205502,1224.8,1223.1,0.55048856]
[1760122906509,0.14205502,1224.8,1223.2,0.55048856]
[1760122906710,0.14205502,1224.8,1223.3,0.55048856]
[1760122907008,0.14205502,1224.8,1223.4,0.55048856]
[1760122907304,0.14205502,1224.8,1223.5,0.55048856]
[1760122907503,0.14205502,1224.8,1223.6,0.55048856]
[1760122907701,0.14205502,1224.8,1223.1,0.60600974]
[1760122907908,0.14205502,1224.8,1223.2,0.55087769]
[1760122908105,0.14205502,1224.8,1223.3,0.55087769]
[1760122908307,0.14205502,1224.8,1223.4,0.55087769]
[1760122908604,0.14205502,1224.8,1223.5,0.55087769]
[1760122908806,0.14205502,1224.8,1223.6,0.55087769]
[1760122909007,0.14205502,1224.8,1223.2,0.60600974]
[1760122909204,0.14205502,1224.8,1223.3,1.15716874]
[1760122909406,0.14205502,1224.8,1223.4,1.15716874]
[1760122909708,0.14205502,1224.8,1223.5,1.15716874]
[1760122909911,0.14205502,1224.8,1223.6,0.551159]
[1760122910106,0.14205502,1224.8,1223.7,0.551159]
[1760122910306,0.14205502,1224.8,1223.8,0.551159]
[1760122910504,0.14205502,1224.8,1223.5,0.60600974]
[1760122910505,0.14205502,1224.8,1223.9,0.551159]
[1760122910706,0.14205502,1224.8,1223.5,0.60600974]
[1760122910908,0.14205502,1224.8,1223.6,0.55154435]
[1760122911109,0.14205502,1224.8,1223.7,0.55154435]
[1760122911310,0.14205502,1224.8,1223.8,0.55154435]
[1760122911510,0.14205502,1224.8,1223.4,0.60600974]
[1760122911705,0.14205502,1224.8,1223.5,0.55165047]
[1760122912007,0.14205502,1224.8,1223.6,0.55165047]
[1760122912205,0.14205502,1224.8,1223.7,0.55165047]
[1760122912407,0.14205502,1224.8,1223.8,0.55165047]
[1760122912607,0.14205502,1224.8,1223.4,0.60600974]
[1760122912806,0.14205502,1224.8,1223.5,0.55171468]
[1760122913007,0.14205502,1224.8,1223.6,0.55171468]
[1760122913309,0.14205502,1224.8,1223.7,0.55171468]
[1760122913508,0.14205502,1224.8,1223.4,0.60600974]
[1760122913712,0.14205502,1224.8,1223.5,0.5518101]
[1760122913913,0.14205502,1224.8,1223.6,0.5518101]
[1760122914113,0.14205502,1224.8,1223.7,0.5518101]
[1760122914313,0.14205502,1224.8,1223.4,0.60600974]
[1760122914513,0.14205502,1224.8,1223.5,0.5518922]
[1760122914810,0.14205502,1224.8,1223.6,0.5518922]
[1760122915011,0.14205502,1224.8,1223.7,0.5518922]
[1760122915209,0.14205502,1224.8,1223.4,0.60600974]
[1760122915409,0.14205502,1224.8,1223.5,0.55197552]
[1760122915613,0.14205502,1224.8,1223.6,0.55197552]
[1760122915813,0.14205502,1224.8,1223.7,0.55197552]
[1760122916011,0.14205502,1224.8,1223.4,0.60600974]
[1760122916211,0.14205502,1224.8,1223.5,0.5520162]
[1760122916411,0.14205502,1224.8,1223.6,0.5520162]
[1760122916615,0.14205502,1224.8,1223.7,0.5520162]
[1760122916812,0.14205502,1224.8,1223.3,0.60600974]
[1760122917016,0.14205502,1224.8,1223.4,0.55206959]
[1760122917215,0.14205502,1224.8,1223.5,0.55206959]
[1760122917412,0.14205502,1224.8,1223.6,0.55206959]
[1760122917612,0.14205502,1224.8,1223.7,0.55206959]
[1760122917916,0.14205502,1224.8,1223.3,0.60600974]
[1760122918110,0.14205502,1224.8,1223.4,0.55211793]
[1760122918312,0.14205502,1224.8,1223.5,0.55211793]
[1760122918513,0.14205502,1224.8,1223.6,0.55211793]
[1760122918712,0.14205502,1224.8,1223.7,0.55211793]
[1760122918919,0.14205502,1224.8,1223.3,0.60600974]
[1760122919117,0.14205502,1224.8,1223.4,0.55215599]
[1760122919314,0.14205502,1224.8,1223.5,0.55215599]
[1760122919515,0.14205502,1224.8,1223.6,0.55215599]
[1760122919716,0.14205502,1224.8,1223.7,0.55215599]
[1760122919915,0.14205502,1224.8,1223.3,0.60600974]
[1760122920218,0.14205502,1224.8,1223.4,0.55220782]
[1760122920417,0.14205502,1224.8,1223.5,0.55220782]
[1760122920713,0.14205502,1224.8,1223.6,0.55220782]
[1760122920917,0.14205502,1224.8,1223.3,0.60600974]
[1760122920918,0.14205502,1224.8,1223.7,0.55220782]
[1760122921116,0.14205502,1224.8,1223.3,0.60600974]
[1760122921314,0.14205502,1224.8,1223.4,0.55226541]
[1760122921513,0.14205502,1224.8,1223.5,0.55226541]
[1760122921714,0.14205502,1224.8,1223.6,0.55226541]
[1760122921911,0.14205502,1224.8,1223.7,0.55226541]
[1760122922114,0.14205502,1224.8,1223.3,0.60600974]
[1760122922312,0.14205502,1224.8,1223.4,0.55231107]
[1760122922615,0.14205502,1224.8,1223.5,0.55231107]
[1760122922815,0.14205502,1224.8,1223.6,0.55231107]
[1760122923014,0.14205502,1224.8,1223.7,0.55231107]
[1760122923315,0.14205502,1224.8,1223.3,0.60600974]
[1760122923515,0.14205502,1224.8,1223.4,0.55277371]
[1760122923714,0.14205502,1224.8,1223.5,0.55277371]
[1760122923913,0.14205502,1224.8,1223.6,0.55277371]
[1760122924114,0.14205502,1224.8,1223.7,0.55277371]
[1760122924317,0.14205502,1224.8,1222.9,0.60600974]
[1760122924614,0.14205502,1224.8,1223.0,0.55293784]
[1760122924819,0.14205502,1224.8,1223.1,0.55293784]
[1760122925017,0.14205502,1224.8,1223.2,0.55293784]
[1760122925220,0.14205502,1224.8,1223.3,0.55293784]
[1760122925517,0.14205502,1224.8,1223.4,0.55293784]
[1760122925818,0.14205502,1224.8,1223.1,0.60600974]
[1760122926017,0.14205502,1224.8,1223.2,1.15894133]
[1760122926320,0.14205502,1224.8,1223.3,0.55293159]
[1760122926520,0.14205502,1224.8,1223.4,0.55293159]
[1760122926721,0.14205502,1224.8,1223.5,0.55293159]
[1760122927017,0.14205502,1224.8,1223.1,0.60600974]
[1760122927316,0.14205502,1224.8,1223.2,1.15908291]
[1760122927521,0.14205502,1224.8,1223.3,0.55307317]
[1760122927717,0.14205502,1224.8,1223.4,0.55307317]
[1760122927916,0.14205502,1224.8,1223.2,0.60600974]
[1760122927917,0.14205502,1224.8,1223.5,0.55307317]
[1760122928116,0.14205502,1224.8,1223.6,0.55307317]
[1760122928421,0.14205502,1224.8,1223.7,0.55307317]
[1760122928621,0.14205502,1224.8,1223.3,0.60600974]
[1760122928917,0.14205502,1224.8,1223.4,0.55306345]
[1760122929116,0.14205502,1224.8,1223.5,0.55306345]
[1760122929318,0.14205502,1224.8,1223.6,0.55306345]
[1760122929623,0.14205502,1224.8,1223.7,0.55306345]
[1760122929822,0.14205502,1224.8,1223.3,0.60600974]
[1760122930120,0.14205502,1224.8,1223.4,1.15911703]
[1760122930319,0.14205502,1224.8,1223.5,0.55310729]
[1760122930620,0.14205502,1224.8,1223.6,0.55310729]
[1760122930920,0.14205502,1224.8,1223.7,0.55310729]
[1760122931125,0.14205502,1224.8,1223.8,0.55310729]
[1760122931325,0.14205502,1224.8,1223.9,0.55310729]
[1760122931622,0.14205502,1224.8,1223.4,0.60600974]
[1760122931819,0.14205502,1224.8,1223.5,0.55315006]
[1760122932024,0.14205502,1224.8,1223.6,0.55315006]
[1760122932321,0.14205502,1224.8,1223.4,0.60600974]
[1760122932322,0.14205502,1224.8,1223.7,0.55315006]
[1760122932521,0.14205502,1224.8,1223.8,0.55315006]
[1760122932721,2.00513214,1226.6,1223.9,0.55315006]
[1760122932923,2.00513214,1226.7,1224.0,0.55315006]
[1760122933125,0.14203241,1225.1,1224.1,0.55315006]
[1760122933326,2.00513214,1226.8,1223.8,0.60600974]
[1760122933520,0.14203531,1225.1,1223.9,0.55290418]
[1760122933725,0.14203531,1225.1,1224.0,0.55290418]
[1760122933922,2.00513214,1226.8,1224.1,0.55290418]
[1760122934122,0.14203821,1225.1,1223.8,0.60600974]
[1760122934325,2.00513214,1226.8,1223.9,0.55274225]
[1760122934622,0.14204111,1225.1,1224.0,0.55274225]
[1760122934925,2.00513214,1226.8,1224.1,0.55274225]
[1760122935123,2.00513214,1226.8,1224.2,0.55270079]
[1760122935425,2.00513214,1226.9,1224.3,0.55266379]
[1760122935725,0.14202951,1226.2,1223.8,0.60600974]
[1760122936026,0.14202951,1226.2,1223.9,0.55266379]
[1760122936322,0.14202951,1226.2,1224.0,0.55266379]
[1760122936521,0.14202951,1226.2,1224.1,0.55266379]
[1760122936822,0.14202951,1226.2,1224.2,0.55266379]
[1760122937026,0.14202951,1226.2,1224.3,0.55266379]
[1760122937226,0.14202951,1226.2,1223.7,0.60600974]
[1760122937423,0.14202951,1226.2,1223.8,0.55276862]
[1760122937721,0.14202951,1226.2,1223.9,0.55276862]
[1760122937923,0.14202951,1226.2,1224.0,0.55276862]
[1760122938127,0.14202951,1226.2,1224.1,0.55276862]
[1760122938327,0.14202951,1226.2,1224.2,0.55276862]
[1760122938624,0.14202951,1226.2,1223.7,0.60600974]
[1760122938924,0.14202951,1226.2,1223.8,0.55284963]
[1760122939123,0.14202951,1226.2,1223.9,0.55284963]
[1760122939327,0.14202951,1226.2,1224.0,0.55284963]
[1760122939526,0.14202951,1226.2,1224.1,0.55284963]
[1760122939722,0.14202951,1226.2,1224.2,0.55284963]
[1760122939925,0.14202951,1226.2,1224.3,0.55284963]
[1760122940223,0.14202951,1226.2,1224.0,0.60600974]
[1760122940427,0.14202951,1226.2,1224.1,0.55300768]
[1760122940627,0.14202951,1226.2,1224.2,0.55300768]
[1760122940824,0.14202951,1226.2,1224.3,0.55300768]
[1760122941123,0.14202951,1226.2,1224.4,0.55300768]
[1760122941326,0.14202951,1226.2,1224.0,0.60600974]
[1760122941528,0.14202951,1226.2,1224.1,0.55286133]
[1760122941723,0.14202951,1226.2,1224.2,0.55286133]
[1760122941924,0.14202951,1226.2,1224.3,0.55286133]
[1760122942125,0.14202951,1226.2,1224.4,0.55286133]
[1760122942426,0.14202951,1226.2,1224.0,0.60600974]
[1760122942625,0.14202951,1226.2,1224.1,0.55292366]
[1760122942828,0.14202951,1226.2,1224.2,0.55292366]
[1760122943025,0.14202951,1226.2,1224.3,0.55292366]
[1760122943325,0.14202951,1226.2,1224.4,0.55292366]
[1760122943527,0.14202951,1226.2,1224.0,0.60600974]
[1760122943729,0.14202951,1226.2,1224.1,0.5529089]
[1760122943927,0.14202951,1226.2,1224.2,0.5529089]
[1760122944131,0.14202951,1226.2,1224.3,0.5529089]
[1760122944331,0.14202951,1226.2,1224.4,0.5529089]
[1760122944529,0.14202951,1226.2,1224.0,0.60600974]
[1760122944732,0.14202951,1226.2,1224.1,0.55281003]
[1760122945033,0.14202951,1226.2,1224.2,0.55281003]
[1760122945230,0.14202951,1226.2,1224.3,0.55281003]
[1760122945530,0.14202951,1226.2,1224.4,0.55281003]
[1760122945729,0.14202951,1226.2,1224.5,0.55281003]
[1760122946033,0.14202951,1226.2,1224.6,0.55264794]
[1760122946234,0.14202951,1226.2,1224.1,0.60600974]
[1760122946434,0.14202951,1226.2,1224.2,0.55248214]
[1760122946733,0.14202951,1226.2,1224.1,0.60600974]
[1760122946734,0.14202951,1226.2,1224.3,0.55248214]
[1760122946934,0.14202951,1226.2,1224.4,0.55248214]
[1760122947231,0.14202951,1226.2,1224.5,0.55248214]
[1760122947435,0.14202951,1226.2,1224.6,0.55248214]
[1760122947632,0.14202951,1226.2,1224.1,0.60600974]
[1760122947831,0.14202951,1226.2,1224.2,0.55226259]
[1760122948031,0.14202951,1226.2,1224.3,0.55226259]
[1760122948230,0.14202951,1226.2,1224.4,0.55226259]
[1760122948431,0.14202951,1226.2,1224.5,0.55226259]
[1760122948636,0.14202951,1226.2,1224.6,0.55226259]
[1760122948833,0.14202951,1226.2,1224.1,0.60600974]
[1760122949132,0.14202951,1226.2,1224.2,0.55205851]
[1760122949337,0.14202951,1226.2,1224.3,0.55205851]
[1760122949634,0.14202951,1226.2,1224.4,0.55205851]
[1760122949832,0.14202951,1226.2,1224.0,0.60600974]
[1760122950037,0.14202951,1226.2,1224.1,0.55193299]
[1760122950334,0.14202951,1226.2,1224.2,0.55193299]
[1760122950531,0.14202951,1226.2,1224.0,0.60600974]
[1760122950532,0.14202951,1226.2,1224.3,0.55193299]
[1760122950737,0.14202951,1226.2,1224.4,0.55193299]
[1760122951037,0.14202951,1226.2,1224.5,0.55183108]
[1760122951239,0.14202951,1226.2,1224.0,0.60600974]
[1760122951437,0.14202951,1226.2,1224.1,0.55173953]
[1760122951638,0.14202951,1226.2,1224.2,0.55173953]
[1760122951934,0.14202951,1226.2,1224.3,0.55173953]
[1760122952133,0.14202951,1226.2,1224.4,0.55173953]
[1760122952338,0.14202951,1226.2,1224.0,0.60600974]
[1760122952637,0.14202951,1226.2,1224.1,0.5516621]
[1760122952936,0.14202951,1226.2,1224.2,0.5516621]
[1760122953134,0.14202951,1226.2,1224.3,0.5516621]
[1760122953333,0.14202951,1226.2,1224.0,0.60600974]
[1760122953334,0.14202951,1226.2,1224.4,0.5516621]
[1760122953637,0.14202951,1226.2,1224.5,0.5516621]
[1760122953936,0.14202951,1226.2,1224.0,0.60600974]
[1760122954137,0.14202951,1226.2,1224.1,0.55228287]
[1760122954436,0.14202951,1226.2,1224.2,0.55228287]
[1760122954638,0.14202951,1226.2,1224.3,0.55228287]
[1760122954934,0.14202951,1226.2,1223.9,0.60600974]
[1760122955135,0.14202951,1226.2,1224.0,0.55229607]
[1760122955334,0.14202951,1226.2,1224.1,0.55229607]
[1760122955534,0.14202951,1226.2,1223.7,0.60600974]
[1760122955735,0.14202951,1226.2,1223.8,0.55238277]
[1760122955936,0.14202951,1226.2,1223.9,0.55238277]
[1760122956135,0.14202951,1226.2,1223.3,0.60600974]
[1760122956339,0.14202951,1226.2,1223.4,0.552565]
[1760122956539,0.14202951,1226.2,1223.5,0.552565]
[1760122956835,0.14202951,1226.2,1223.6,0.552565]
[1760122957039,0.14202951,1226.2,1223.7,0.552565]
[1760122957237,0.14202951,1226.2,1223.8,0.552565]
[1760122957434,0.14202951,1226.2,1223.9,0.552565]
[1760122957635,0.14202951,1226.2,1224.0,0.552565]
[1760122957835,0.14202951,1226.2,1224.1,0.552565]
[1760122958036,0.14202951,1226.2,1223.6,0.60600974]
[1760122958236,0.14202951,1226.2,1223.7,0.55250839]
[1760122958440,0.14202951,1226.2,1223.8,0.55250839]
[1760122958638,0.14202951,1226.2,1223.9,1.15851813]
[1760122958838,0.14202951,1226.2,1224.0,0.55250839]
[1760122959037,0.14202951,1226.2,1224.1,0.55250839]
[1760122959238,0.14202951,1226.2,1224.2,0.55250839]
[1760122959441,0.14202951,1226.2,1224.3,0.55250839]
[1760122959638,0.14202951,1226.2,1223.9,0.60600974]
[1760122959837,0.14202951,1226.2,1224.0,0.55243453]
[1760122960138,0.14202951,1226.2,1224.1,0.55243453]
[1760122960343,0.14202951,1226.2,1224.2,0.55243453]
[1760122960639,0.14202951,1226.2,1224.3,0.55243453]
[1760122960942,0.14202951,1226.2,1224.4,0.55243453]
[1760122961139,0.14202951,1226.2,1223.9,0.60600974]
[1760122961344,0.14202951,1226.2,1224.0,0.55247464]
[1760122961540,0.14202951,1226.2,1224.1,0.55247464]
[1760122961745,0.14202951,1226.2,1224.2,0.55247464]
[1760122962039,0.14202951,1226.2,1224.3,0.55247464]
[1760122962244,0.14202951,1226.2,1224.4,0.55247464]
[1760122962540,0.14202951,1226.2,1223.9,0.60600974]
[1760122962741,0.14202951,1226.2,1224.0,1.15851849]
[1760122962945,0.14202951,1226.2,1224.1,0.55250875]
[1760122963146,0.14202951,1226.2,1224.2,0.55250875]
[1760122963445,0.14202951,1226.2,1224.3,0.55250875]
[1760122963645,0.14202951,1226.2,1224.4,0.55250875]
[1760122963845,0.14202951,1226.2,1224.5,0.55250875]
[1760122964146,0.14202951,1226.2,1224.0,0.60600974]
[1760122964442,0.14202951,1226.2,1224.1,0.55256317]
[1760122964642,0.14202951,1226.2,1224.2,0.55256317]
[1760122964941,0.14202951,1226.2,1224.3,0.55256317]
[1760122965141,0.14202951,1226.2,1224.4,0.55256317]
[1760122965342,0.14202951,1226.2,1224.5,0.55256317]
[1760122965642,0.14202951,1226.2,1224.0,0.60600974]
[1760122965843,0.14202951,1226.2,1224.1,0.55261009]
[1760122966045,0.14202951,1226.2,1224.2,0.55261009]
[1760122966242,0.14202951,1226.2,1224.3,0.55261009]
[1760122966544,0.14202951,1226.2,1224.4,0.55261009]
[1760122966744,0.14202951,1226.2,1223.9,0.60600974]
[1760122966943,0.14202951,1226.2,1224.0,0.55273554]
[1760122967148,0.14202951,1226.2,1224.1,0.55273554]
[1760122967445,0.14202951,1226.2,1223.6,0.60600974]
[1760122967649,0.14202951,1226.2,1223.7,0.55286639]
[1760122967946,0.14202951,1226.2,1223.8,0.55286639]
[1760122968144,0.14202951,1226.2,1223.9,0.55286639]
[1760122968346,0.14202951,1226.2,1224.0,0.55286639]
[1760122968545,0.14202951,1226.2,1223.6,0.60600974]
[1760122968744,0.14202951,1226.2,1223.7,0.55297103]
[1760122969050,0.14202951,1226.2,1223.8,0.55297103]
[1760122969350,0.14202951,1226.2,1223.9,0.55297103]
[1760122969649,0.14202951,1226.2,1224.0,0.55297103]
[1760122969845,0.14202951,1226.2,1224.1,0.55297103]
[1760122970049,0.14202951,1226.2,1223.5,0.60600974]
[1760122970346,0.14202951,1226.2,1223.6,0.55308923]
[1760122970545,0.14202951,1226.2,1223.7,0.55308923]
[1760122970846,0.14202951,1226.2,1223.8,0.55308923]
[1760122971044,0.14202951,1226.2,1223.9,0.55308923]
[1760122971248,0.14202951,1226.2,1224.0,0.55308923]
[1760122971449,0.14202951,1226.2,1224.1,0.55308923]
[1760122971645,0.14202951,1226.2,1223.6,0.60600974]
[1760122971946,0.14202951,1226.2,1223.7,0.55308818]
[1760122972155,0.14202951,1226.2,1223.8,0.55308818]
[1760122972351,0.14202951,1226.2,1223.9,0.55308818]
[1760122972556,0.14202951,1226.2,1224.0,0.55308818]
[1760122972855,0.14202951,1226.2,1224.1,0.55308818]
[1760122973056,0.14202951,1226.2,1223.5,0.60600974]
[1760122973251,0.14202951,1226.2,1223.6,0.55318752]
[1760122973452,0.14202951,1226.2,1223.7,0.55318752]
[1760122973655,0.14202951,1226.2,1223.8,0.55318752]
[1760122973854,0.14202951,1226.2,1223.9,0.55318752]
[1760122974051,0.14202951,1226.2,1224.0,0.55318752]
[1760122974356,0.14202951,1226.2,1223.6,0.60600974]
[1760122974555,0.14202951,1226.2,1223.7,0.55325898]
[1760122974755,0.14202951,1226.2,1223.8,0.55325898]
[1760122974956,0.14202951,1226.2,1223.9,0.55325898]
[1760122975151,0.14202951,1226.2,1223.3,0.60600974]
[1760122975455,0.14202951,1226.2,1223.4,0.55341414]
[1760122975653,0.14202951,1226.2,1223.5,0.55341414]
[1760122975952,0.14202951,1226.2,1223.6,0.55341414]
[1760122976256,0.14202951,1226.2,1223.7,0.55341414]
[1760122976456,0.14202951,1226.2,1223.3,0.60600974]
[1760122976756,0.14202951,1226.2,1223.5,0.60600974]
[1760122976955,0.14202951,1226.2,1223.6,0.55345723]
[1760122977152,0.14202951,1226.2,1223.7,0.55345723]
[1760122977356,0.14202951,1226.2,1223.8,0.55345723]
[1760122977652,0.14202951,1226.2,1223.9,0.55345723]
[1760122977856,0.14202951,1226.2,1224.0,0.55345723]
[1760122978055,0.14202951,1226.2,1224.1,0.55345723]
[1760122978259,0.14202951,1226.2,1224.2,0.55345723]
[1760122978559,0.14202951,1226.2,1223.8,0.60600974]
[1760122978754,0.14202951,1226.2,1223.9,0.55356692]
[1760122978953,0.14202951,1226.2,1224.0,0.55356692]
[1760122979254,0.14202951,1226.2,1224.1,0.55356692]
[1760122979459,0.14202951,1226.2,1224.2,0.55356692]
[1760122979657,0.14202951,1226.2,1224.3,0.55356692]
[1760122979860,0.14202951,1226.2,1224.4,0.55356544]
[1760122980060,0.14202951,1226.2,1224.5,0.55356544]
[1760122980264,0.14202951,1226.2,1224.0,0.60600974]
[1760122980558,0.14202951,1226.2,1224.1,0.55356285]
[1760122980757,0.14202951,1226.2,1224.2,0.55356285]
[1760122980957,0.14202951,1226.2,1224.3,0.55356285]
[1760122981160,0.14202951,1226.2,1224.4,0.55356285]
[1760122981361,0.14202951,1226.2,1224.5,0.55356285]
[1760122981558,0.14202951,1226.2,1224.0,0.60600974]
[1760122981761,0.14202951,1226.2,1224.1,0.55362585]
[1760122981960,0.14202951,1226.2,1224.2,0.55362585]
[1760122982258,0.14202951,1226.2,1224.3,0.55362585]
[1760122982456,0.14202951,1226.2,1224.4,0.55362585]
[1760122982656,0.14202951,1226.2,1224.5,0.55362585]
[1760122982860,0.14202951,1226.2,1224.6,0.55362585]
[1760122983057,0.14202951,1226.2,1224.2,0.60600974]
[1760122983258,0.14202951,1226.2,1224.3,0.55172854]
[1760122983460,0.14202951,1226.2,1224.4,0.55172854]
[1760122983756,0.14202951,1226.2,1224.5,0.55172854]
[1760122983960,0.14202951,1226.2,1224.6,0.55172854]
[1760122984157,0.14202951,1226.2,1224.7,0.55172854]
[1760122984357,0.14202951,1226.2,1224.0,0.60600974]
[1760122984557,0.14202951,1226.2,1224.1,0.55175642]
[1760122984856,0.14202951,1226.2,1224.2,0.55175642]
[1760122985055,0.14202951,1226.2,1224.3,0.55175642]
[1760122985260,0.14202951,1226.2,1224.4,0.55175642]
[1760122985457,0.14202951,1226.2,1223.8,0.60600974]
[1760122985657,0.14202951,1226.2,1223.9,0.55219864]
[1760122985958,0.14202951,1226.2,1224.0,0.55219864]
[1760122986258,0.14202951,1226.2,1224.1,0.55219864]
[1760122986461,0.14202951,1226.2,1224.2,0.55219864]
[1760122986756,0.14202951,1226.2,1224.3,0.55219864]
[1760122986961,0.14202951,1226.2,1223.8,0.60600974]
[1760122987159,0.14202951,1226.2,1223.9,0.5524378]
[1760122987359,0.14202951,1226.2,1224.0,0.5524378]
[1760122987558,0.14202951,1226.2,1224.1,0.5524378]
[1760122987760,0.14202951,1226.2,1224.2,0.5524378]
[1760122987958,0.14202951,1226.2,1223.6,0.60600974]
[1760122988158,0.14202951,1226.2,1223.7,1.15874324]
[1760122988360,0.14202951,1226.2,1223.8,0.5527335]
[1760122988558,0.14202951,1226.2,1223.9,0.5527335]
[1760122988763,0.14202951,1226.2,1224.0,0.5527335]
[1760122988961,0.14202951,1226.2,1224.1,0.5527335]
[1760122989162,0.14202951,1226.2,1223.6,0.60600974]
[1760122989462,0.14202951,1226.2,1223.7,0.55310555]
[1760122989764,0.14202951,1226.2,1223.8,0.55310555]
[1760122989956,0.14202951,1226.2,1223.9,0.55310555]
[1760122990158,0.14202951,1226.2,1224.0,0.55310555]
[1760122990361,0.14202951,1226.2,1224.1,0.55310555]
[1760122990558,0.14202951,1226.2,1223.6,0.60600974]
[1760122990762,0.14202951,1226.2,1223.7,0.55322027]
[1760122990962,0.14202951,1226.2,1223.8,0.55322027]
[1760122991259,0.14202951,1226.2,1223.9,0.55322027]
[1760122991461,0.14202951,1226.2,1223.5,0.60600974]
[1760122991658,0.14202951,1226.2,1223.6,0.55333613]
[1760122991863,0.14202951,1226.2,1223.7,0.55333613]
[1760122992162,0.14202951,1226.2,1223.8,0.55333613]
[1760122992360,0.14202951,1226.2,1223.9,0.55333613]
[1760122992561,0.14202951,1226.2,1223.4,0.60600974]
[1760122992761,2.14716165,1226.2,1223.5,0.55340225]
[1760122992959,2.14716165,1226.2,1223.6,0.55340225]
[1760122993158,2.14716165,1226.2,1223.7,0.55340225]
[1760122993363,2.14716165,1226.2,1223.2,0.60600974]
[1760122993559,2.14716165,1226.2,1223.3,0.55033705]
[1760122993759,0.14202951,1226.2,1223.4,0.55033705]
[1760122993963,0.14202951,1226.2,1223.0,0.60600974]
[1760122993964,0.14202951,1226.2,1223.5,0.55033705]
[1760122994260,0.14202951,1226.2,1223.6,0.55033705]
[1760122994463,0.14202951,1226.2,1223.7,0.55033705]
[1760122994660,0.14202951,1226.2,1223.1,0.60600974]
[1760122994865,0.14202951,1226.2,1223.2,0.55004476]
[1760122995066,0.14202951,1226.2,1223.3,0.55004476]
[1760122995274,0.14202951,1226.2,1223.4,0.55004476]
[1760122995462,0.14202951,1226.2,1223.5,0.55004476]